[Event "Titled Tuesday Blitz August 16 Late 2022"]
[White "Pichot, Alan"]
[Black "Mcconnell, Sullivan"]
[WhiteFideId "110973"]
[BlackFideId "30934885"]
[WhiteElo "2578"]
[BlackElo "2691"]
[Result "1-0"]
[Round "03"]
[TimeControl "180+1"]
[Date "2022.08.16"]
[WhiteClock "0:01:19"]
[BlackClock "0:01:03"]

1. e4 {[%clk 0:03:00]}  e6 {[%clk 0:03:00]} 2. d4 {[%clk 0:02:58]}  d5 {[%clk 0:03:00]} 3. Nc3 {[%clk 0:02:59]}  Nf6 {[%clk 0:03:00]} 4. e5 {[%clk 0:02:59]}  Nfd7 {[%clk 0:03:00]} 5. f4 {[%clk 0:02:58]}  c5 {[%clk 0:03:00]} 6. Nf3 {[%clk 0:02:59]}  Nc6 {[%clk 0:03:01]} 7. Be3 {[%clk 0:02:59]}  a6 {[%clk 0:03:01]} 8. a3 {[%clk 0:02:59]}  b5 {[%clk 0:03:02]} 9. dxc5 {[%clk 0:02:50]}  Bxc5 {[%clk 0:03:01]} 10. Bxc5 {[%clk 0:02:48]}  Nxc5 {[%clk 0:03:02]} 11. b4 {[%clk 0:02:48]}  Nd7 {[%clk 0:02:54]} 12. Bd3 {[%clk 0:02:48]}  Bb7 {[%clk 0:02:54]} 13. O-O {[%clk 0:02:44]}  Rc8 {[%clk 0:02:54]} 14. Ne2 {[%clk 0:02:43]}  Qb6+ {[%clk 0:02:53]} 15. Kh1 {[%clk 0:02:44]}  g6 {[%clk 0:02:45]} 16. c3 {[%clk 0:02:44]}  h5 {[%clk 0:02:45]} 17. Qd2 {[%clk 0:02:42]}  Qc7 {[%clk 0:02:35]} 18. a4 {[%clk 0:02:22]}  bxa4 {[%clk 0:02:19]} 19. Rxa4 {[%clk 0:02:22]}  a5 {[%clk 0:02:19]} 20. Ra3 {[%clk 0:02:04]}  axb4 {[%clk 0:02:16]} 21. cxb4 {[%clk 0:02:05]}  Qb6 {[%clk 0:02:12]} 22. b5 {[%clk 0:02:05]}  Ne7 {[%clk 0:02:08]} 23. Ned4 {[%clk 0:02:05]}  Nc5 {[%clk 0:02:05]} 24. Rc1 {[%clk 0:02:04]}  Nxd3 {[%clk 0:02:03]} 25. Rxd3 {[%clk 0:02:03]}  Rxc1+ {[%clk 0:02:02]} 26. Qxc1 {[%clk 0:02:03]}  Kd7 {[%clk 0:02:02]} 27. Rc3 {[%clk 0:01:52]}  Rc8 {[%clk 0:02:02]} 28. h3 {[%clk 0:01:46]}  Nf5 {[%clk 0:01:44]} 29. Rxc8 {[%clk 0:01:39]}  Bxc8 {[%clk 0:01:45]} 30. Qc3 {[%clk 0:01:39]}  Ng3+ {[%clk 0:01:43]} 31. Kh2 {[%clk 0:01:39]}  Ne4 {[%clk 0:01:44]} 32. Qa3 {[%clk 0:01:38]}  Nc5 {[%clk 0:01:39]} 33. Ng5 {[%clk 0:01:36]}  Ke8 {[%clk 0:01:38]} 34. Nh7 {[%clk 0:01:32]}  Kd8 {[%clk 0:01:29]} 35. Nf6 {[%clk 0:01:29]}  Kc7 {[%clk 0:01:17]} 36. Ne8+ {[%clk 0:01:26]}  Kd8 {[%clk 0:01:17]} 37. Nd6 {[%clk 0:01:25]}  Bd7 {[%clk 0:01:03]} 38. Qxc5 {[%clk 0:01:19]} 1-0


[Site "https://www.chess.com"]

[Event "Titled Tuesday Blitz August 16 Late 2022"]
[White "Pires, Marcos Vinicius Torsani"]
[Black "Foerster-Yialamas, Lucas"]
[WhiteFideId "2118939"]
[BlackFideId "30901774"]
[WhiteElo "2273"]
[BlackElo "1804"]
[Result "1-0"]
[Round "03"]
[TimeControl "180+1"]
[Date "2022.08.18"]
[WhiteClock "0:00:00"]
[BlackClock "0:00:00"]

1. d4 {[%clk 0:00:00]}  Nf6 {[%clk 0:00:00]} 2. Bf4 {[%clk 0:00:00]}  g6 {[%clk 0:00:00]} 3. e3 {[%clk 0:00:00]}  Bg7 {[%clk 0:00:00]} 4. Nf3 {[%clk 0:00:00]}  d6 {[%clk 0:00:00]} 5. h3 {[%clk 0:00:00]}  Bd7 {[%clk 0:00:00]} 6. Be2 {[%clk 0:00:00]}  O-O {[%clk 0:00:00]} 7. O-O {[%clk 0:00:00]}  Nd5 {[%clk 0:00:00]} 8. Bh2 {[%clk 0:00:00]}  c5 {[%clk 0:00:00]} 9. e4 {[%clk 0:00:00]}  Nb6 {[%clk 0:00:00]} 10. c3 {[%clk 0:00:00]}  cxd4 {[%clk 0:00:00]} 11. cxd4 {[%clk 0:00:00]}  Nc6 {[%clk 0:00:00]} 12. Nc3 {[%clk 0:00:00]}  Rc8 {[%clk 0:00:00]} 13. Rc1 {[%clk 0:00:00]}  a6 {[%clk 0:00:00]} 14. Re1 {[%clk 0:00:00]}  h6 {[%clk 0:00:00]} 15. Bf4 {[%clk 0:00:00]}  Kh7 {[%clk 0:00:00]} 16. Qd2 {[%clk 0:00:00]}  e5 {[%clk 0:00:00]} 17. Be3 {[%clk 0:00:00]}  exd4 {[%clk 0:00:00]} 18. Nxd4 {[%clk 0:00:00]}  Nxd4 {[%clk 0:00:00]} 19. Bxd4 {[%clk 0:00:00]}  Nc4 {[%clk 0:00:00]} 20. Bxc4 {[%clk 0:00:00]}  Rxc4 {[%clk 0:00:00]} 21. Bxg7 {[%clk 0:00:00]}  Kxg7 {[%clk 0:00:00]} 22. Qxd6 {[%clk 0:00:00]}  Be6 {[%clk 0:00:00]} 23. Rcd1 {[%clk 0:00:00]}  Qxd6 {[%clk 0:00:00]} 24. Rxd6 {[%clk 0:00:00]}  Rfc8 {[%clk 0:00:00]} 25. f3 {[%clk 0:00:00]}  Rb4 {[%clk 0:00:00]} 26. Re2 {[%clk 0:00:00]}  a5 {[%clk 0:00:00]} 27. Red2 {[%clk 0:00:00]}  b5 {[%clk 0:00:00]} 28. a3 {[%clk 0:00:00]}  Rb3 {[%clk 0:00:00]} 29. Nd5 {[%clk 0:00:00]}  Bxd5 {[%clk 0:00:00]} 30. exd5 {[%clk 0:00:00]}  Rc1+ {[%clk 0:00:00]} 31. Kh2 {[%clk 0:00:00]}  Rb1 {[%clk 0:00:00]} 32. Rb6 {[%clk 0:00:00]}  R1xb2 {[%clk 0:00:00]} 33. Rxb2 {[%clk 0:00:00]}  Rxb2 {[%clk 0:00:00]} 34. d6 {[%clk 0:00:00]}  a4 {[%clk 0:00:00]} 35. d7 {[%clk 0:00:00]}  Rd2 {[%clk 0:00:00]} 36. Rxb5 {[%clk 0:00:00]}  Rxd7 {[%clk 0:00:00]} 37. Rb4 {[%clk 0:00:00]}  Ra7 {[%clk 0:00:00]} 38. Kg3 {[%clk 0:00:00]}  g5 {[%clk 0:00:00]} 39. Kf2 {[%clk 0:00:00]}  Kg6 {[%clk 0:00:00]} 40. Ke3 {[%clk 0:00:00]}  Re7+ {[%clk 0:00:00]} 41. Kd3 {[%clk 0:00:00]}  Ra7 {[%clk 0:00:00]} 42. Kc4 {[%clk 0:00:00]}  Rc7+ {[%clk 0:00:00]} 43. Kd3 {[%clk 0:00:00]}  Ra7 {[%clk 0:00:00]} 44. g3 {[%clk 0:00:00]}  h5 {[%clk 0:00:00]} 45. h4 {[%clk 0:00:00]}  gxh4 {[%clk 0:00:00]} 46. Rxh4 {[%clk 0:00:00]}  Kg5 {[%clk 0:00:00]} 47. Rb4 {[%clk 0:00:00]}  f5 {[%clk 0:00:00]} 48. Rc4 {[%clk 0:00:00]}  Rb7 {[%clk 0:00:00]} 49. Rb4 {[%clk 0:00:00]}  Rd7+ {[%clk 0:00:00]} 50. Rd4 {[%clk 0:00:00]}  Ra7 {[%clk 0:00:00]} 51. Kc3 {[%clk 0:00:00]}  Re7 {[%clk 0:00:00]} 52. Kd3 {[%clk 0:00:00]}  Rb7 {[%clk 0:00:00]} 53. Rb4 {[%clk 0:00:00]}  Rd7+ {[%clk 0:00:00]} 54. Rd4 {[%clk 0:00:00]}  Rb7 {[%clk 0:00:00]} 55. Rxa4 {[%clk 0:00:00]}  Rb3+ {[%clk 0:00:00]} 56. Ke2 {[%clk 0:00:00]}  Rb2+ {[%clk 0:00:00]} 57. Ke3 {[%clk 0:00:00]}  Rb3+ {[%clk 0:00:00]} 58. Kf2 {[%clk 0:00:00]}  Rb2+ {[%clk 0:00:00]} 59. Kf1 {[%clk 0:00:00]}  Ra2 {[%clk 0:00:00]} 60. Ra8 {[%clk 0:00:00]}  h4 {[%clk 0:00:00]} 61. Rg8+ {[%clk 0:00:00]}  Kf6 {[%clk 0:00:00]} 62. gxh4 {[%clk 0:00:00]}  Rxa3 {[%clk 0:00:00]} 63. Kf2 {[%clk 0:00:00]}  f4 {[%clk 0:00:00]} 64. Rf8+ {[%clk 0:00:00]}  Ke5 {[%clk 0:00:00]} 65. Re8+ {[%clk 0:00:00]}  Kf5 {[%clk 0:00:00]} 66. Rf8+ {[%clk 0:00:00]}  Ke5 {[%clk 0:00:00]} 67. h5 {[%clk 0:00:00]}  Ra2+ {[%clk 0:00:00]} 68. Kg1 {[%clk 0:00:00]}  Ra7 {[%clk 0:00:00]} 69. Rg8 {[%clk 0:00:00]}  Kf5 {[%clk 0:00:00]} 70. Rf8+ {[%clk 0:00:00]}  Kg5 {[%clk 0:00:00]} 71. Kg2 {[%clk 0:00:00]}  Kxh5 {[%clk 0:00:00]} 72. Rxf4 {[%clk 0:00:00]}  Kg5 {[%clk 0:00:00]} 73. Rb4 {[%clk 0:00:00]}  Ra2+ {[%clk 0:00:00]} 74. Kg3 {[%clk 0:00:00]}  Ra3 {[%clk 0:00:00]} 75. Rb5+ {[%clk 0:00:00]}  Kg6 {[%clk 0:00:00]} 76. Kg4 {[%clk 0:00:00]}  Ra4+ {[%clk 0:00:00]} 77. f4 {[%clk 0:00:00]}  Kg7 {[%clk 0:00:00]} 78. Rb7+ {[%clk 0:00:00]}  Kf6 {[%clk 0:00:00]} 79. Rb8 {[%clk 0:00:00]}  Ra1 {[%clk 0:00:00]} 80. Rc8 {[%clk 0:00:00]}  Rg1+ {[%clk 0:00:00]} 81. Kf3 {[%clk 0:00:00]}  Rf1+ {[%clk 0:00:00]} 82. Kg3 {[%clk 0:00:00]}  Rg1+ {[%clk 0:00:00]} 83. Kf2 {[%clk 0:00:00]}  Ra1 {[%clk 0:00:00]} 84. Rc4 {[%clk 0:00:00]}  Kf5 {[%clk 0:00:00]} 85. Kf3 {[%clk 0:00:00]}  Ra3+ {[%clk 0:00:00]} 86. Kf2 {[%clk 0:00:00]}  Ra2+ {[%clk 0:00:00]} 87. Kg3 {[%clk 0:00:00]}  Ra3+ {[%clk 0:00:00]} 88. Kh4 {[%clk 0:00:00]}  Ra8 {[%clk 0:00:00]} 89. Kg3 {[%clk 0:00:00]}  Ra3+ {[%clk 0:00:00]} 90. Kh4 {[%clk 0:00:00]}  Ra8 {[%clk 0:00:00]} 91. Kh3 {[%clk 0:00:00]}  Rg8 {[%clk 0:00:00]} 92. Rb4 {[%clk 0:00:00]}  Rg7 {[%clk 0:00:00]} 93. Rc4 {[%clk 0:00:00]}  Rg8 {[%clk 0:00:00]} 94. Ra4 {[%clk 0:00:00]}  Rg6 {[%clk 0:00:00]} 95. Rb4 {[%clk 0:00:00]}  Rg7 {[%clk 0:00:00]} 96. Ra4 {[%clk 0:00:00]}  Rh7+ {[%clk 0:00:00]} 97. Kg3 {[%clk 0:00:00]}  Rb7 {[%clk 0:00:00]} 98. Ra5+ {[%clk 0:00:00]}  Kf6 {[%clk 0:00:00]} 99. Kg4 {[%clk 0:00:00]}  Rb6 {[%clk 0:00:00]} 100. Rc5 {[%clk 0:00:00]}  Kg6 {[%clk 0:00:00]} 101. Rd5 {[%clk 0:00:00]}  Kf6 {[%clk 0:00:00]} 102. Rf5+ {[%clk 0:00:00]}  Kg6 {[%clk 0:00:00]} 103. Ra5 {[%clk 0:00:00]}  Rb1 {[%clk 0:00:00]} 104. Ra6+ {[%clk 0:00:00]}  Kf7 {[%clk 0:00:00]} 105. Kg5 {[%clk 0:00:00]}  Rb5+ {[%clk 0:00:00]} 106. f5 {[%clk 0:00:00]}  Rb7 {[%clk 0:00:00]} 107. Ra8 {[%clk 0:00:00]}  Rb1 {[%clk 0:00:00]} 108. Ra7+ {[%clk 0:00:00]}  Kg8 {[%clk 0:00:00]} 109. Kg6 {[%clk 0:00:00]}  Rg1+ {[%clk 0:00:00]} 110. Kf6 {[%clk 0:00:00]}  Rf1 {[%clk 0:00:00]} 111. Ra8+ {[%clk 0:00:00]}  Kh7 {[%clk 0:00:00]} 112. Rf8 {[%clk 0:00:00]}  Re1 {[%clk 0:00:00]} 113. Kf7 {[%clk 0:00:00]}  Ra1 {[%clk 0:00:00]} 114. Re8 {[%clk 0:00:00]}  Ra7+ {[%clk 0:00:00]} 115. Re7 {[%clk 0:00:00]}  Ra8 {[%clk 0:00:00]} 116. f6 {[%clk 0:00:00]}  Rb8 {[%clk 0:00:00]} 117. Re8 {[%clk 0:00:00]}  Rb7+ {[%clk 0:00:00]} 118. Kf8 {[%clk 0:00:00]}  Rb1 {[%clk 0:00:00]} 119. f7 {[%clk 0:00:00]}  Rf1 {[%clk 0:00:00]} 120. Re2 {[%clk 0:00:00]}  Kg6 {[%clk 0:00:00]} 121. Rg2+ {[%clk 0:00:00]}  Kh7 {[%clk 0:00:00]} 122. Rg4 {[%clk 0:00:00]}  Re1 {[%clk 0:00:00]} 123. Rh4+ {[%clk 0:00:00]}  Kg6 {[%clk 0:00:00]} 124. Kg8 {[%clk 0:00:00]}  Kg5 {[%clk 0:00:00]} 125. Rh2 {[%clk 0:00:00]}  Rg1 {[%clk 0:00:00]} 126. f8=Q {[%clk 0:00:00]}  Kg4 {[%clk 0:00:00]} 127. Qg7+ {[%clk 0:00:00]}  Kf3 {[%clk 0:00:00]} 128. Qxg1 {[%clk 0:00:00]}  Ke4 {[%clk 0:00:00]} 129. Rf2 {[%clk 0:00:00]}  Ke5 {[%clk 0:00:00]} 130. Qe1+ {[%clk 0:00:00]}  Kd4 {[%clk 0:00:00]} 131. Rd2+ {[%clk 0:00:00]}  Kc4 {[%clk 0:00:00]} 132. Qc1+ {[%clk 0:00:00]}  Kb3 {[%clk 0:00:00]} 133. Rb2+ {[%clk 0:00:00]}  Ka3 {[%clk 0:00:00]} 134. Qa1# {[%clk 0:00:00]} 1-0


[Site "https://www.chess.com"]

[Event "Titled Tuesday Blitz August 16 Late 2022"]
[White "Poltorak, Sebastian"]
[Black "Bogaudinov, Rushan"]
[WhiteFideId "1199498"]
[BlackFideId "4129288"]
[WhiteElo "2102"]
[BlackElo "2040"]
[Result "1/2-1/2"]
[Round "03"]
[TimeControl "180+1"]
[Date "2022.08.18"]
[WhiteClock "0:00:00"]
[BlackClock "0:00:00"]

1. a3 {[%clk 0:00:00]}  e6 {[%clk 0:00:00]} 2. d4 {[%clk 0:00:00]}  Nf6 {[%clk 0:00:00]} 3. Nf3 {[%clk 0:00:00]}  d5 {[%clk 0:00:00]} 4. b4 {[%clk 0:00:00]}  a5 {[%clk 0:00:00]} 5. b5 {[%clk 0:00:00]}  c6 {[%clk 0:00:00]} 6. e3 {[%clk 0:00:00]}  Be7 {[%clk 0:00:00]} 7. a4 {[%clk 0:00:00]}  O-O {[%clk 0:00:00]} 8. Ba3 {[%clk 0:00:00]}  Nbd7 {[%clk 0:00:00]} 9. Qd2 {[%clk 0:00:00]}  Re8 {[%clk 0:00:00]} 10. Be2 {[%clk 0:00:00]}  Ne4 {[%clk 0:00:00]} 11. Qc1 {[%clk 0:00:00]}  e5 {[%clk 0:00:00]} 12. O-O {[%clk 0:00:00]}  exd4 {[%clk 0:00:00]} 13. bxc6 {[%clk 0:00:00]}  bxc6 {[%clk 0:00:00]} 14. Nxd4 {[%clk 0:00:00]}  Bxa3 {[%clk 0:00:00]} 15. Nxa3 {[%clk 0:00:00]}  Qf6 {[%clk 0:00:00]} 16. c4 {[%clk 0:00:00]}  Ne5 {[%clk 0:00:00]} 17. cxd5 {[%clk 0:00:00]}  cxd5 {[%clk 0:00:00]} 18. Nab5 {[%clk 0:00:00]}  Qg6 {[%clk 0:00:00]} 19. Re1 {[%clk 0:00:00]}  Bh3 {[%clk 0:00:00]} 20. Bf1 {[%clk 0:00:00]}  Ng4 {[%clk 0:00:00]} 21. Re2 {[%clk 0:00:00]}  Rac8 {[%clk 0:00:00]} 22. Qe1 {[%clk 0:00:00]}  Ne5 {[%clk 0:00:00]} 23. Kh1 {[%clk 0:00:00]}  Nd3 {[%clk 0:00:00]} 24. Qxa5 {[%clk 0:00:00]}  Ndxf2+ {[%clk 0:00:00]} 25. Kg1 {[%clk 0:00:00]}  Bg4 {[%clk 0:00:00]} 26. Rxf2 {[%clk 0:00:00]}  Nxf2 {[%clk 0:00:00]} 27. Kxf2 {[%clk 0:00:00]}  Qf6+ {[%clk 0:00:00]} 28. Kg1 {[%clk 0:00:00]}  Rxe3 {[%clk 0:00:00]} 29. Qd2 {[%clk 0:00:00]}  Rce8 {[%clk 0:00:00]} 30. Qf2 {[%clk 0:00:00]}  Qg6 {[%clk 0:00:00]} 31. a5 {[%clk 0:00:00]}  Bc8 {[%clk 0:00:00]} 32. a6 {[%clk 0:00:00]}  Bxa6 {[%clk 0:00:00]} 33. Nc7 {[%clk 0:00:00]}  Bxf1 {[%clk 0:00:00]} 34. Nxe8 {[%clk 0:00:00]}  Rxe8 {[%clk 0:00:00]} 35. Rxf1 {[%clk 0:00:00]}  h5 {[%clk 0:00:00]} 36. Nf3 {[%clk 0:00:00]}  Re4 {[%clk 0:00:00]} 37. h3 {[%clk 0:00:00]}  f6 {[%clk 0:00:00]} 38. Qa2 {[%clk 0:00:00]}  Qf7 {[%clk 0:00:00]} 39. Rd1 {[%clk 0:00:00]}  d4 {[%clk 0:00:00]} 40. Qxf7+ {[%clk 0:00:00]}  Kxf7 {[%clk 0:00:00]} 41. Rxd4 {[%clk 0:00:00]}  Re2 {[%clk 0:00:00]} 42. Rd7+ {[%clk 0:00:00]}  Kg6 {[%clk 0:00:00]} 43. Rd2 {[%clk 0:00:00]}  Re3 {[%clk 0:00:00]} 44. Kf2 {[%clk 0:00:00]}  Ra3 {[%clk 0:00:00]} 45. Kg3 {[%clk 0:00:00]}  Kh6 {[%clk 0:00:00]} 46. Rd8 {[%clk 0:00:00]}  Rb3 {[%clk 0:00:00]} 47. Kf4 {[%clk 0:00:00]}  Rb4+ {[%clk 0:00:00]} 48. Kg3 {[%clk 0:00:00]}  Rb3 {[%clk 0:00:00]} 49. h4 {[%clk 0:00:00]}  Ra3 {[%clk 0:00:00]} 50. Rd4 {[%clk 0:00:00]}  Rb3 {[%clk 0:00:00]} 51. Kf4 {[%clk 0:00:00]}  Rb2 {[%clk 0:00:00]} 52. g3 {[%clk 0:00:00]}  Rf2 {[%clk 0:00:00]} 53. Ke3 {[%clk 0:00:00]}  Ra2 {[%clk 0:00:00]} 54. Rd8 {[%clk 0:00:00]}  Ra3+ {[%clk 0:00:00]} 55. Kf4 {[%clk 0:00:00]}  Ra4+ {[%clk 0:00:00]} 56. Nd4 {[%clk 0:00:00]}  Kg6 {[%clk 0:00:00]} 57. Ke4 {[%clk 0:00:00]}  Ra1 {[%clk 0:00:00]} 58. Ne2 {[%clk 0:00:00]}  Ra3 {[%clk 0:00:00]} 59. Nf4+ {[%clk 0:00:00]}  Kf7 {[%clk 0:00:00]} 60. Nxh5 {[%clk 0:00:00]}  g6 {[%clk 0:00:00]} 61. Nf4 {[%clk 0:00:00]}  Rxg3 {[%clk 0:00:00]} 62. Rd7+ {[%clk 0:00:00]}  Ke8 {[%clk 0:00:00]} 63. Rh7 {[%clk 0:00:00]}  Rg4 {[%clk 0:00:00]} 64. Kf3 {[%clk 0:00:00]}  Rg1 {[%clk 0:00:00]} 65. Nd5 {[%clk 0:00:00]}  g5 {[%clk 0:00:00]} 66. Nxf6+ {[%clk 0:00:00]}  Kf8 {[%clk 0:00:00]} 67. hxg5 {[%clk 0:00:00]}  Rxg5 {[%clk 0:00:00]} 68. Kf4 {[%clk 0:00:00]}  Ra5 {[%clk 0:00:00]} 69. Rb7 {[%clk 0:00:00]}  Ra4+ {[%clk 0:00:00]} 70. Kg5 {[%clk 0:00:00]}  Ra5+ {[%clk 0:00:00]} 71. Kg6 {[%clk 0:00:00]}  Rg5+ {[%clk 0:00:00]} 72. Kh6 {[%clk 0:00:00]}  Rg6+ {[%clk 0:00:00]} 73. Kh5 {[%clk 0:00:00]}  Rxf6 {[%clk 0:00:00]} 74. Rb8+ {[%clk 0:00:00]}  Ke7 {[%clk 0:00:00]} 75. Rb2 {[%clk 0:00:00]}  Re6 {[%clk 0:00:00]} 76. Rd2 {[%clk 0:00:00]}  Rd6 {[%clk 0:00:00]} 77. Re2+ {[%clk 0:00:00]}  Kd7 {[%clk 0:00:00]} 78. Ra2 {[%clk 0:00:00]}  Rd5+ {[%clk 0:00:00]} 79. Kg6 {[%clk 0:00:00]}  Rd6+ {[%clk 0:00:00]} 80. Kf5 {[%clk 0:00:00]}  Kc6 {[%clk 0:00:00]} 81. Ke5 {[%clk 0:00:00]}  Rd5+ {[%clk 0:00:00]} 82. Ke4 {[%clk 0:00:00]}  Rd1 {[%clk 0:00:00]} 83. Ra6+ {[%clk 0:00:00]}  Kd7 {[%clk 0:00:00]} 84. Ra7+ {[%clk 0:00:00]}  Kd6 {[%clk 0:00:00]} 85. Ra2 {[%clk 0:00:00]}  Kd7 {[%clk 0:00:00]} 86. Ke5 {[%clk 0:00:00]}  Re1+ {[%clk 0:00:00]} 87. Kd5 {[%clk 0:00:00]}  Rd1+ {[%clk 0:00:00]} 88. Kc4 {[%clk 0:00:00]}  Rc1+ {[%clk 0:00:00]} 89. Kd3 {[%clk 0:00:00]}  Rc6 {[%clk 0:00:00]} 90. Ra5 {[%clk 0:00:00]}  Ke6 {[%clk 0:00:00]} 91. Kd4 {[%clk 0:00:00]}  Rd6+ {[%clk 0:00:00]} 92. Ke4 {[%clk 0:00:00]}  Rb6 {[%clk 0:00:00]} 93. Ra4 {[%clk 0:00:00]}  Kf6 {[%clk 0:00:00]} 94. Kf4 {[%clk 0:00:00]}  Rc6 {[%clk 0:00:00]} 95. Kg4 {[%clk 0:00:00]}  Rb6 {[%clk 0:00:00]} 96. Rc4 {[%clk 0:00:00]}  Ke6 {[%clk 0:00:00]} 97. Kg5 {[%clk 0:00:00]}  Rb5+ {[%clk 0:00:00]} 98. Kf4 {[%clk 0:00:00]}  Kd5 {[%clk 0:00:00]} 99. Rc8 {[%clk 0:00:00]}  Rc5 {[%clk 0:00:00]} 100. Rd8+ {[%clk 0:00:00]}  Kc4 {[%clk 0:00:00]} 101. Ke4 {[%clk 0:00:00]}  Rc7 {[%clk 0:00:00]} 102. Re8 {[%clk 0:00:00]}  Rc6 {[%clk 0:00:00]} 103. Re5 {[%clk 0:00:00]}  Rc7 {[%clk 0:00:00]} 104. Ke3 {[%clk 0:00:00]}  Rc5 {[%clk 0:00:00]} 105. Re4+ {[%clk 0:00:00]}  Kc3 {[%clk 0:00:00]} 106. Ke2 {[%clk 0:00:00]}  Rc7 {[%clk 0:00:00]} 107. Ra4 {[%clk 0:00:00]}  Rd7 {[%clk 0:00:00]} 108. Ra3+ {[%clk 0:00:00]}  Kc4 {[%clk 0:00:00]} 109. Ke3 {[%clk 0:00:00]}  Kc5 {[%clk 0:00:00]} 110. Rc3+ {[%clk 0:00:00]}  Kd6 {[%clk 0:00:00]} 111. Rc8 {[%clk 0:00:00]}  Re7+ {[%clk 0:00:00]} 112. Kd4 {[%clk 0:00:00]}  Rd7 {[%clk 0:00:00]} 113. Rh8 {[%clk 0:00:00]}  Ke6+ {[%clk 0:00:00]} 114. Ke4 {[%clk 0:00:00]}  Kf6 {[%clk 0:00:00]} 115. Rh5 {[%clk 0:00:00]}  Ra7 {[%clk 0:00:00]} 116. Rh6+ {[%clk 0:00:00]}  Kg7 {[%clk 0:00:00]} 117. Rc6 {[%clk 0:00:00]}  Rf7 {[%clk 0:00:00]} 118. Ke5 {[%clk 0:00:00]}  Rf8 {[%clk 0:00:00]} 119. Rc7+ {[%clk 0:00:00]}  Rf7 {[%clk 0:00:00]} 120. Rc8 {[%clk 0:00:00]}  Rf8 {[%clk 0:00:00]} 121. Rc7+ {[%clk 0:00:00]}  Rf7 {[%clk 0:00:00]} 122. Rc1 {[%clk 0:00:00]}  Ra7 {[%clk 0:00:00]} 123. Rg1+ {[%clk 0:00:00]}  Kf7 {[%clk 0:00:00]} 1/2-1/2


[Site "https://www.chess.com"]

[Event "Titled Tuesday Blitz August 16 Late 2022"]
[White "Remolar Gallen, Jose"]
[Black "Espinosa Veloz, Ermes"]
[WhiteFideId "2215187"]
[BlackFideId "3507424"]
[WhiteElo "2305"]
[BlackElo "2496"]
[Result "0-1"]
[Round "03"]
[TimeControl "180+1"]
[Date "2022.08.18"]
[WhiteClock "0:00:00"]
[BlackClock "0:00:00"]

1. d4 {[%clk 0:00:00]}  Nf6 {[%clk 0:00:00]} 2. Nf3 {[%clk 0:00:00]}  g6 {[%clk 0:00:00]} 3. Nbd2 {[%clk 0:00:00]}  Bg7 {[%clk 0:00:00]} 4. e4 {[%clk 0:00:00]}  d6 {[%clk 0:00:00]} 5. Bd3 {[%clk 0:00:00]}  O-O {[%clk 0:00:00]} 6. O-O {[%clk 0:00:00]}  c5 {[%clk 0:00:00]} 7. c3 {[%clk 0:00:00]}  Nc6 {[%clk 0:00:00]} 8. Re1 {[%clk 0:00:00]}  Nh5 {[%clk 0:00:00]} 9. a4 {[%clk 0:00:00]}  cxd4 {[%clk 0:00:00]} 10. cxd4 {[%clk 0:00:00]}  Nxd4 {[%clk 0:00:00]} 11. Nxd4 {[%clk 0:00:00]}  Bxd4 {[%clk 0:00:00]} 12. Nc4 {[%clk 0:00:00]}  Bd7 {[%clk 0:00:00]} 13. Be2 {[%clk 0:00:00]}  Bg7 {[%clk 0:00:00]} 14. Bxh5 {[%clk 0:00:00]}  gxh5 {[%clk 0:00:00]} 15. Qxh5 {[%clk 0:00:00]}  Rc8 {[%clk 0:00:00]} 16. Bh6 {[%clk 0:00:00]}  Rc5 {[%clk 0:00:00]} 17. e5 {[%clk 0:00:00]}  Rxc4 {[%clk 0:00:00]} 18. f4 {[%clk 0:00:00]}  Bxh6 {[%clk 0:00:00]} 19. Qxh6 {[%clk 0:00:00]}  dxe5 {[%clk 0:00:00]} 20. Qg5+ {[%clk 0:00:00]}  Kh8 {[%clk 0:00:00]} 21. Qxe5+ {[%clk 0:00:00]}  f6 {[%clk 0:00:00]} 22. Qd5 {[%clk 0:00:00]}  Qb6+ {[%clk 0:00:00]} 23. Kh1 {[%clk 0:00:00]}  Qc6 {[%clk 0:00:00]} 24. Qh5 {[%clk 0:00:00]}  Rc2 {[%clk 0:00:00]} 25. Rg1 {[%clk 0:00:00]}  Rg8 {[%clk 0:00:00]} 0-1


[Site "https://www.chess.com"]

[Event "Titled Tuesday Blitz August 16 Late 2022"]
[White "Rios Escobar, Adan"]
[Black "Wieczorek, Oskar"]
[WhiteFideId "3403645"]
[BlackFideId "1133950"]
[WhiteElo "2430"]
[BlackElo "2302"]
[Result "0-1"]
[Round "03"]
[TimeControl "180+1"]
[Date "2022.08.16"]
[WhiteClock "0:00:04"]
[BlackClock "0:01:01"]

1. d4 {[%clk 0:02:57]}  Nf6 {[%clk 0:03:00]} 2. g3 {[%clk 0:02:57]}  g6 {[%clk 0:03:00]} 3. Bg2 {[%clk 0:02:57]}  Bg7 {[%clk 0:03:00]} 4. e4 {[%clk 0:02:57]}  d6 {[%clk 0:03:00]} 5. Ne2 {[%clk 0:02:58]}  O-O {[%clk 0:03:01]} 6. O-O {[%clk 0:02:58]}  e5 {[%clk 0:03:01]} 7. Nbc3 {[%clk 0:02:59]}  Nc6 {[%clk 0:02:59]} 8. dxe5 {[%clk 0:02:59]}  Nxe5 {[%clk 0:02:55]} 9. f4 {[%clk 0:02:58]}  Nc6 {[%clk 0:02:44]} 10. h3 {[%clk 0:02:56]}  Re8 {[%clk 0:02:43]} 11. Be3 {[%clk 0:02:56]}  Bd7 {[%clk 0:02:36]} 12. Qd2 {[%clk 0:02:55]}  Rb8 {[%clk 0:02:34]} 13. Rae1 {[%clk 0:02:54]}  b5 {[%clk 0:02:34]} 14. a3 {[%clk 0:02:01]}  a5 {[%clk 0:02:34]} 15. Qd3 {[%clk 0:02:01]}  b4 {[%clk 0:02:32]} 16. Nd5 {[%clk 0:01:59]}  Nxd5 {[%clk 0:02:13]} 17. exd5 {[%clk 0:01:59]}  Ne7 {[%clk 0:01:47]} 18. axb4 {[%clk 0:01:58]}  axb4 {[%clk 0:01:43]} 19. Bd4 {[%clk 0:01:57]}  Bb5 {[%clk 0:01:37]} 20. Qd2 {[%clk 0:01:51]}  Bxd4+ {[%clk 0:01:37]} 21. Qxd4 {[%clk 0:01:42]}  Nf5 {[%clk 0:01:37]} 22. Qf2 {[%clk 0:01:30]}  Bxe2 {[%clk 0:01:27]} 23. Rxe2 {[%clk 0:01:23]}  Rxe2 {[%clk 0:01:28]} 24. Qxe2 {[%clk 0:01:22]}  Nxg3 {[%clk 0:01:28]} 25. Qc4 {[%clk 0:01:07]}  Nxf1 {[%clk 0:01:28]} 26. Bxf1 {[%clk 0:01:06]}  Qd7 {[%clk 0:01:20]} 27. Kh2 {[%clk 0:00:49]}  b3 {[%clk 0:01:18]} 28. cxb3 {[%clk 0:00:48]}  Re8 {[%clk 0:01:16]} 29. Qa6 {[%clk 0:00:41]}  Qf5 {[%clk 0:01:12]} 30. Qa4 {[%clk 0:00:39]}  Qc2+ {[%clk 0:01:10]} 31. Kg1 {[%clk 0:00:38]}  Re1 {[%clk 0:00:59]} 32. Qd4 {[%clk 0:00:13]}  Qe2 {[%clk 0:00:55]} 33. Qf2 {[%clk 0:00:10]}  Qxf2+ {[%clk 0:00:55]} 34. Kxf2 {[%clk 0:00:10]}  Rb1 {[%clk 0:00:56]} 35. Bc4 {[%clk 0:00:10]}  Rxb2+ {[%clk 0:00:57]} 36. Kg3 {[%clk 0:00:10]}  Kg7 {[%clk 0:00:57]} 37. Kg4 {[%clk 0:00:10]}  f5+ {[%clk 0:00:57]} 38. Kg3 {[%clk 0:00:10]}  Kf6 {[%clk 0:00:57]} 39. Kf3 {[%clk 0:00:10]}  g5 {[%clk 0:00:58]} 40. Kg3 {[%clk 0:00:09]}  h6 {[%clk 0:00:58]} 41. h4 {[%clk 0:00:07]}  Rc2 {[%clk 0:00:58]} 42. hxg5+ {[%clk 0:00:07]}  hxg5 {[%clk 0:00:58]} 43. fxg5+ {[%clk 0:00:05]}  Kxg5 {[%clk 0:00:59]} 44. Kf3 {[%clk 0:00:06]}  Rc3+ {[%clk 0:01:00]} 45. Kf2 {[%clk 0:00:06]}  Kf4 {[%clk 0:01:01]} 46. Ke2 {[%clk 0:00:06]}  Ke5 {[%clk 0:01:01]} 47. Kd2 {[%clk 0:00:04]}  Rxc4 {[%clk 0:01:01]} 48. bxc4 {[%clk 0:00:04]}  Kd4 {[%clk 0:01:01]} 0-1


[Site "https://www.chess.com"]